bitfinex-derivatives/quotes_BTCF0:USTF0_20250325
["timestamp","ask_amount","ask_price","bid_price","bid_amount"]
[1742896932399,0.49074873,87273.0,87272.0,0.00017179]
[1742896932589,0.52609137,87273.0,87272.0,0.00017179]
[1742896932900,0.58999137,87273.0,87272.0,0.00017179]
[1742896933390,0.56362078,87273.0,87272.0,0.00017179]
[1742896933590,0.56362078,87273.0,87272.0,9e-08]
[1742896935592,0.66954016,87273.0,87272.0,9e-08]
[1742896936588,0.65528064,87273.0,87272.0,0.26457059]
[1742896936895,0.65528064,87273.0,87272.0,0.15068009]
[1742896937094,0.40692064,87273.0,87272.0,9e-08]
[1742896940689,0.30100126,87273.0,87272.0,9e-08]
[1742896940889,0.30628873,87273.0,87272.0,9e-08]
[1742896943886,0.30624873,87273.0,87272.0,9e-08]
[1742896950807,0.41224874,87273.0,87272.0,9e-08]
[1742896951694,0.29984874,87273.0,87272.0,9e-08]
[1742896951895,0.41224874,87273.0,87272.0,9e-08]
[1742896953902,0.30624873,87273.0,87272.0,9e-08]
[1742896955500,0.66704873,87273.0,87272.0,9e-08]
[1742896959704,0.114581,87264.0,87263.0,0.00045838]
[1742896959908,0.60316053,87264.0,87263.0,0.00045838]
[1742896960211,0.58890101,87264.0,87263.0,0.00045838]
[1742896960509,0.68750101,87264.0,87263.0,0.00045838]
[1742896960809,0.29270101,87264.0,87263.0,0.03235838]
[1742896961108,0.29370101,87264.0,87263.0,0.03235838]
[1742896964401,0.18130101,87264.0,87263.0,0.03235838]
[1742896964607,0.29370101,87264.0,87263.0,0.03235838]
[1742896967016,0.00212001,87264.0,87263.0,0.57694068]
[1742896967221,0.001,87264.0,87263.0,0.60872068]
[1742896967512,0.001,87264.0,87263.0,0.64262068]
[1742896968609,0.115581,87264.0,87263.0,0.64262068]
[1742896968809,0.116741,87264.0,87263.0,0.64262068]
[1742896969615,0.116741,87264.0,87263.0,0.35803838]
[1742896969813,0.149441,87264.0,87263.0,0.35803838]
[1742896970514,0.149441,87264.0,87263.0,0.47262068]
[1742896971107,0.149441,87264.0,87263.0,0.35803838]
[1742896971621,0.149441,87264.0,87263.0,0.47262068]
[1742896974517,0.149441,87264.0,87263.0,0.35803838]
[1742896974921,0.149441,87264.0,87263.0,0.47262068]
[1742896975123,0.149441,87264.0,87263.0,0.35803838]
[1742896975418,0.180941,87264.0,87263.0,0.35803838]
[1742896976319,0.180941,87264.0,87263.0,0.47262068]
[1742896976821,0.19520052,87264.0,87263.0,0.00113838]
[1742896977021,0.19520052,87264.0,87263.0,0.00045838]
[1742896977412,0.19520052,87264.0,87263.0,0.27045838]
[1742896977614,0.19520052,87264.0,87263.0,0.00113838]
[1742896977814,0.19520052,87264.0,87263.0,0.00045838]
[1742896979114,0.1145915,87256.0,87255.0,0.00011504]
[1742896979306,0.22815151,87256.0,87255.0,0.00071504]
[1742896979506,0.29345151,87256.0,87255.0,0.00071504]
[1742896980719,0.30771103,87256.0,87255.0,0.00071504]
[1742896982209,0.34131103,87256.0,87255.0,0.00071504]
[1742896982810,0.35265906,87256.0,87255.0,0.00071504]
[1742896983016,0.1146204,87234.0,87233.0,0.4754217]
[1742896983328,0.1146204,87234.0,87233.0,1.07763452]
[1742896983818,0.2108204,87234.0,87233.0,1.07763452]
[1742896984024,0.2121404,87234.0,87233.0,1.07763452]
[1742896984318,0.2121404,87234.0,87233.0,0.7146]
[1742896984527,0.2121404,87234.0,87233.0,0.9546]
[1742896984724,0.2131404,87234.0,87233.0,0.7146]
[1742896985018,0.2141404,87234.0,87233.0,0.7146]
[1742896985209,0.2131404,87234.0,87233.0,0.7146]
[1742896985617,0.2131404,87234.0,87233.0,0.9646]
[1742896985818,0.2131404,87234.0,87233.0,0.7146]
[1742896986916,0.1486404,87234.0,87233.0,1.1092217]
[1742896987127,0.1473204,87234.0,87233.0,1.1092217]
[1742896987326,0.1486404,87234.0,87233.0,1.1092217]
[1742896987623,0.00232,87234.0,87233.0,1.1092217]
[1742896987828,0.0333,87247.0,87241.0,0.1146112]
[1742896988026,0.0641,87256.0,87255.0,0.1145928]
[1742896988228,0.0641,87256.0,87255.0,0.3645928]
[1742896988529,0.11005952,87256.0,87255.0,0.3651928]
[1742896988726,0.11005952,87256.0,87255.0,0.43845031]
[1742896988929,0.28195582,87256.0,87255.0,0.32385751]
[1742896989834,0.28195582,87256.0,87255.0,0.43845031]
[1742896991330,0.28195582,87256.0,87255.0,0.43945031]
[1742896993033,0.28195582,87256.0,87255.0,0.3136]
[1742896993231,0.28195582,87256.0,87255.0,0.0324]
[1742896993433,0.28287582,87256.0,87255.0,0.0016]
[1742896993829,0.28287582,87256.0,87255.0,0.2416]
[1742896994133,0.28287582,87256.0,87255.0,0.0016]
[1742896994430,0.28287582,87256.0,87255.0,0.0006]
[1742896994934,0.114602,87248.0,87247.0,0.00017189]
[1742896995125,0.115522,87248.0,87247.0,0.00077189]
[1742896995321,0.30794152,87248.0,87247.0,0.00077189]
[1742896995738,0.30794152,87248.0,87247.0,0.16077189]
[1742896997022,0.30794152,87248.0,87247.0,0.00077189]
[1742896997828,0.30794152,87248.0,87247.0,0.00177189]
[1742896998028,0.30794152,87248.0,87247.0,0.17177189]
[1742896998331,0.293682,87248.0,87247.0,0.40177189]
[1742896998531,0.293682,87248.0,87247.0,0.17177189]
[1742896998730,0.293682,87248.0,87247.0,0.23487189]
[1742897001440,0.181322,87248.0,87247.0,0.51947519]
[1742897001735,0.181322,87248.0,87247.0,0.34947519]
[1742897004238,0.181322,87248.0,87247.0,0.59947519]
[1742897004536,0.181322,87248.0,87247.0,0.34947519]
[1742897006643,0.181322,87248.0,87247.0,0.53947519]
[1742897006947,0.2027892,87256.0,87255.0,0.1145928]
[1742897007140,0.2027892,87256.0,87255.0,0.6545928]
[1742897007345,0.2027892,87256.0,87255.0,0.7221728]
[1742897007541,0.2034292,87256.0,87255.0,0.7221728]
[1742897007836,0.2027892,87256.0,87255.0,0.7214928]
[1742897008342,0.1718892,87256.0,87255.0,0.7214928]
[1742897010738,0.1718892,87256.0,87255.0,0.7224928]
[1742897011233,0.0572964,87256.0,87255.0,0.7224928]
[1742897012239,0.1469902,87257.0,87256.0,0.1145915]
[1742897012438,0.1469902,87257.0,87256.0,0.6650915]
[1742897012737,0.1476702,87257.0,87256.0,0.6657315]
[1742897013839,0.1476702,87257.0,87256.0,0.6667315]
[1742897014238,0.1784702,87257.0,87256.0,0.6667315]
[1742897015840,0.1784702,87257.0,87256.0,0.4267315]
[1742897016050,0.1784702,87257.0,87256.0,0.5867315]
[1742897020743,0.1784702,87257.0,87256.0,0.00164]
[1742897020744,0.19272972,87257.0,87256.0,0.00164]
[1742897021141,0.1146007,87249.0,87248.0,0.4078]
[1742897021448,0.12970022,87249.0,87248.0,0.4084]
[1742897021641,0.19100022,87249.0,87248.0,0.4084]
[1742897021945,0.19100022,87249.0,87248.0,0.523002]
[1742897022133,0.19100022,87249.0,87248.0,0.693002]
[1742897022337,0.19100022,87249.0,87248.0,0.5784]
[1742897022537,0.19100022,87249.0,87248.0,0.285202]
[1742897023248,0.19100022,87249.0,87248.0,0.29653878]
[1742897023546,0.19100022,87249.0,87248.0,0.286202]
[1742897024145,0.19100022,87249.0,87248.0,0.1716]
[1742897024347,0.19100022,87249.0,87248.0,0.286202]
[1742897024348,0.22170022,87249.0,87248.0,0.286202]
[1742897024744,0.22170022,87249.0,87248.0,0.1716]
[1742897024943,0.22170022,87249.0,87248.0,0.0016]
[1742897025146,0.114623,87232.0,87225.0,0.3608]
[1742897025444,0.24224252,87232.0,87231.0,0.0006]
[1742897025750,0.24224252,87232.0,87218.0,0.3608]
[1742897025751,0.1146401,87219.0,87218.0,0.4754402]
[1742897025942,0.11588011,87219.0,87218.0,0.7883402]
[1742897026249,0.11588011,87219.0,87218.0,0.8296402]
[1742897026648,0.17798011,87219.0,87218.0,0.8296402]
[1742897029449,0.17798011,87219.0,87218.0,0.6837]
[1742897029847,0.17798011,87219.0,87218.0,0.6414]
[1742897030144,0.19223963,87219.0,87218.0,0.6414]
[1742897030747,0.19223963,87219.0,87218.0,0.3614]
[1742897031858,0.19223963,87219.0,87218.0,0.4760414]
[1742897032151,0.19223963,87219.0,87218.0,0.3614]
[1742897032538,0.19223963,87219.0,87218.0,0.5414]
[1742897033451,0.19223963,87219.0,87218.0,0.3614]
[1742897036355,0.19223963,87219.0,87218.0,0.0006]
[1742897036553,0.114644,87216.0,87215.0,0.00045863]
[1742897036853,0.13010353,87216.0,87215.0,0.00045863]
[1742897040550,0.19100353,87216.0,87215.0,0.00045863]
[1742897040745,0.30332353,87216.0,87215.0,0.00045863]
[1742897047255,0.31453694,87216.0,87215.0,0.00045863]
[1742897048653,0.1146572,87206.0,87205.0,0.0302]
[1742897048861,0.22817721,87206.0,87205.0,0.0308]
[1742897049059,0.32397721,87206.0,87205.0,0.0302]
[1742897049963,0.32397721,87206.0,87205.0,0.2602]
[1742897050164,0.32497721,87206.0,87205.0,0.0314]
[1742897050460,0.32497721,87206.0,87205.0,0.0302]
[1742897050461,0.32597721,87206.0,87205.0,0.0302]
[1742897050961,0.34023673,87206.0,87205.0,0.0302]
[1742897051161,0.29427721,87206.0,87205.0,0.1902]
[1742897051360,0.29427721,87206.0,87205.0,0.19148]
[1742897051860,0.26197721,87206.0,87205.0,0.19148]
[1742897052360,0.26197721,87206.0,87205.0,0.03148]
[1742897052560,0.29347721,87206.0,87205.0,0.03148]
[1742897052958,0.29347721,87206.0,87205.0,0.0302]
[1742897053154,0.29347721,87206.0,87205.0,0.0308]
[1742897053363,0.29347721,87206.0,87205.0,0.0302]
[1742897053865,0.29347721,87206.0,87205.0,0.03088]
[1742897055763,0.18115721,87206.0,87205.0,0.03088]
[1742897055965,0.26197721,87206.0,87205.0,0.20088]
[1742897056558,0.23017721,87206.0,87205.0,0.20088]
[1742897057763,0.26237721,87206.0,87205.0,0.20088]
[1742897059963,0.26237721,87206.0,87205.0,0.23208]
[1742897061872,0.15005721,87206.0,87205.0,0.23208]
[1742897062173,0.1146555,87208.0,87207.0,0.0573279]
[1742897062361,0.1154955,87208.0,87207.0,0.5379279]
[1742897062556,0.00084,87208.0,87207.0,0.5379279]
[1742897062761,0.1146414,87220.0,87219.0,0.1146401]
[1742897062964,0.22988681,87220.0,87219.0,0.42068]
[1742897063169,0.26178681,87220.0,87219.0,0.2406]
[1742897063568,0.29318681,87220.0,87219.0,0.2406]
[1742897063773,0.29318681,87220.0,87219.0,0.2521608]
[1742897063965,0.29318681,87220.0,87219.0,0.2406]
[1742897064473,0.29318681,87220.0,87219.0,0.3027]
[1742897066571,0.26178681,87220.0,87219.0,0.4173401]
[1742897067169,0.26178681,87220.0,87219.0,0.4573401]
[1742897067370,0.05792001,87220.0,87219.0,0.6873401]
[1742897067573,0.05792001,87220.0,87219.0,0.4573401]
[1742897068472,0.05732,87220.0,87219.0,0.4573401]
[1742897068772,0.05732,87220.0,87219.0,0.6073401]
[1742897070568,0.00017189,87227.0,87225.0,0.0573161]
[1742897070874,0.00017189,87227.0,87226.0,0.5707309]
[1742897071065,0.0007719,87227.0,87226.0,1.0607309]
[1742897071266,0.00017189,87227.0,87226.0,1.0613309]
[1742897071467,0.1719308,87234.0,87233.0,0.1719293]
[1742897071666,0.1719308,87234.0,87233.0,0.9733293]
[1742897071667,0.17253081,87234.0,87233.0,0.9733293]
[1742897072462,0.17253081,87234.0,87233.0,0.6787102]
[1742897073576,0.17253081,87234.0,87233.0,0.3179102]
[1742897073776,0.17353081,87234.0,87233.0,0.3179102]
[1742897074073,0.17453081,87234.0,87233.0,0.3179102]
[1742897074281,0.17453081,87234.0,87233.0,0.3752217]
[1742897075571,0.18879033,87234.0,87233.0,0.2606]
[1742897075877,0.18879033,87234.0,87233.0,0.0006]
[1742897076586,0.18879033,87234.0,87233.0,0.12678035]
[1742897076769,0.18879033,87234.0,87233.0,0.29678035]
[1742897076963,0.18879033,87234.0,87233.0,0.2852217]
[1742897077274,0.18879033,87234.0,87233.0,0.1706]
[1742897078075,0.18879033,87234.0,87233.0,0.3485217]
[1742897078275,0.18879033,87234.0,87233.0,0.2339]
[1742897079574,0.18879033,87234.0,87233.0,0.0639]
[1742897079878,0.18879033,87234.0,87233.0,0.0338]
[1742897080081,0.18879033,87234.0,87233.0,0.0006]
[1742897080980,0.18879033,87234.0,87233.0,0.1152217]
[1742897081176,0.18879033,87234.0,87233.0,0.0006]
[1742897082782,0.30103033,87234.0,87233.0,0.0006]
[1742897090478,0.114623,87232.0,87231.0,0.0307]
[1742897090679,0.12956252,87232.0,87231.0,0.25198]
[1742897090875,0.22296252,87232.0,87231.0,0.25198]
[1742897091375,0.22296252,87232.0,87231.0,0.03138]
[1742897091595,0.22296252,87232.0,87231.0,0.00068]
[1742897106997,0.33516252,87232.0,87231.0,0.00068]
[1742897107795,0.258103,87232.0,87231.0,0.15068]
[1742897108090,0.00068,87232.0,87231.0,0.5053043]
[1742897108295,0.0577068,87240.0,87239.0,0.1146138]
[1742897108496,0.1723206,87240.0,87239.0,0.7119938]
[1742897108698,0.1732006,87240.0,87239.0,0.7119938]
[1742897109595,0.1732006,87240.0,87239.0,0.72366619]
[1742897110095,0.1732006,87240.0,87239.0,0.36905239]
[1742897110295,0.1752006,87240.0,87239.0,0.36905239]
[1742897110594,0.1772006,87240.0,87239.0,0.36905239]
[1742897116187,0.1772006,87240.0,87239.0,0.09738]
[1742897116401,0.2104006,87240.0,87239.0,0.09738]
[1742897116895,0.2427006,87240.0,87239.0,0.09738]
[1742897117098,0.2427006,87240.0,87239.0,0.06498]
[1742897117898,0.2427006,87240.0,87239.0,0.33498]
[1742897118095,0.2427006,87240.0,87239.0,0.06498]
[1742897119797,0.2427006,87240.0,87239.0,0.33498]
[1742897120095,0.2427006,87240.0,87239.0,0.06498]
[1742897121803,0.1146283,87228.0,87227.0,0.3608]
[1742897122101,0.12952782,87228.0,87227.0,0.3714]
[1742897122303,0.16162782,87228.0,87227.0,0.0006]
[1742897122506,0.1146309,87226.0,87221.0,0.0313]
[1742897122713,0.12961042,87226.0,87225.0,0.000852]
[1742897123010,0.1153509,87226.0,87225.0,0.250852]
[1742897123307,0.1774509,87226.0,87225.0,0.000852]
[1742897123509,0.1774509,87226.0,87225.0,0.065752]
[1742897125105,0.1774509,87226.0,87225.0,0.245752]
[1742897128509,0.1774509,87226.0,87225.0,0.065752]
[1742897130614,0.1774509,87226.0,87225.0,0.065072]
[1742897130811,0.19171042,87226.0,87225.0,0.065712]
[1742897135721,0.19171042,87226.0,87225.0,0.335712]
[1742897136414,0.00072,87226.0,87225.0,0.6303442]
[1742897136629,0.1719396,87231.0,87230.0,0.1146256]
[1742897136815,0.1719396,87231.0,87230.0,0.9761056]
[1742897137020,0.1725796,87231.0,87230.0,0.9761056]
[1742897137216,0.1725796,87231.0,87230.0,1.0378056]
[1742897137918,0.1725796,87231.0,87230.0,0.7778056]
[1742897138120,0.1725796,87231.0,87230.0,1.0478056]
[1742897138614,0.2057796,87231.0,87230.0,0.7778056]
[1742897138815,0.2057796,87231.0,87230.0,0.66318]
[1742897139015,0.2358796,87231.0,87230.0,0.66318]
[1742897139824,0.2358796,87231.0,87230.0,0.91318]
[1742897140520,0.2358796,87231.0,87230.0,0.66318]
[1742897142312,0.2358796,87231.0,87230.0,0.7778056]
[1742897143824,0.2358796,87231.0,87230.0,0.66318]
[1742897145112,0.25013912,87231.0,87230.0,0.36148]
[1742897146323,0.22003912,87231.0,87230.0,0.61148]
[1742897146911,0.22003912,87231.0,87230.0,0.67388]
[1742897148120,0.2057796,87231.0,87230.0,0.67388]
[1742897148321,0.2057796,87231.0,87230.0,1.0685056]
[1742897149323,0.2057796,87231.0,87230.0,0.7885056]
[1742897150218,0.00064,87231.0,87230.0,1.0685056]
[1742897150419,0.1449165,87238.0,87237.0,0.1146165]
[1742897150619,0.1449165,87238.0,87237.0,0.7562165]
[1742897150620,0.19289602,87238.0,87237.0,0.7562165]
[1742897150816,0.19289602,87238.0,87237.0,0.6416]
[1742897151923,0.19389602,87238.0,87237.0,0.6416]
[1742897152520,0.19389602,87238.0,87237.0,0.7562165]
[1742897152721,0.19389602,87238.0,87237.0,0.6416]
[1742897152922,0.19589602,87238.0,87237.0,0.6416]
[1742897153318,0.19589602,87238.0,87237.0,0.7562165]
[1742897154033,0.19589602,87238.0,87237.0,0.6416]
[1742897154831,0.19589602,87238.0,87237.0,0.9116]
[1742897155034,0.19589602,87238.0,87237.0,1.0262165]
[1742897155526,0.19589602,87238.0,87237.0,0.6416]
[1742897157828,0.19589602,87238.0,87237.0,0.3616]
[1742897158018,0.19589602,87238.0,87237.0,0.6316]
[1742897163326,0.1146309,87226.0,87223.0,0.20442577]
[1742897163522,0.12957042,87226.0,87225.0,0.010852]
[1742897163931,0.19397042,87226.0,87225.0,0.041452]
[1742897164231,0.19397042,87226.0,87225.0,0.031452]
[1742897164627,0.19397042,87226.0,87225.0,0.000852]
[1742897168630,0.19397042,87226.0,87225.0,0.033252]
[1742897169423,0.19397042,87226.0,87225.0,0.203252]
[1742897169827,0.19397042,87226.0,87225.0,0.3500842]
[1742897170629,0.19397042,87226.0,87225.0,0.235452]
[1742897170938,0.19397042,87226.0,87225.0,0.3500842]
[1742897172029,0.19397042,87226.0,87225.0,0.235452]
[1742897174632,0.19397042,87226.0,87225.0,0.203252]
[1742897174839,0.19397042,87226.0,87225.0,0.000852]
[1742897188643,0.19397042,87226.0,87211.0,0.0633]
[1742897188644,0.1146493,87212.0,87211.0,0.0633]
[1742897188833,0.1146506,87211.0,87210.0,0.00068]
[1742897189037,0.1146585,87205.0,87204.0,0.0323]
[1742897189240,0.1146625,87202.0,87197.0,0.3031677]
[1742897189541,0.22762251,87202.0,87201.0,0.20502577]
[1742897189741,0.32512251,87202.0,87201.0,0.23732577]
[1742897190750,0.33938203,87202.0,87201.0,0.23732577]
[1742897191446,0.33938203,87202.0,87201.0,0.20502577]
[1742897191651,0.1146651,87200.0,87197.0,0.2725677]
[1742897191835,0.13000463,87200.0,87199.0,0.00109872]
[1742897192034,0.19390463,87200.0,87199.0,0.00045872]
[1742897193445,0.1146822,87187.0,87186.0,0.00875049]
[1742897193644,0.13002173,87187.0,87186.0,0.0006]
[1742897193845,0.22562173,87187.0,87186.0,0.0006]
[1742897194545,0.1146848,87185.0,87184.0,0.0322]
[1742897194848,0.1146861,87184.0,87183.0,0.0004588]
[1742897195046,0.19512563,87184.0,87183.0,0.0004588]
[1742897196747,0.19512563,87184.0,87183.0,0.1604588]
[1742897196956,0.19512563,87184.0,87183.0,0.0011388]
[1742897197146,0.19512563,87184.0,87183.0,0.0004588]
[1742897198647,0.14896611,87184.0,87183.0,0.0004588]
[1742897199157,0.18076611,87184.0,87183.0,0.0004588]
[1742897212056,0.18076611,87184.0,87183.0,0.0010588]
[1742897212663,0.18076611,87184.0,87183.0,0.0004588]
[1742897213064,0.18076611,87184.0,87183.0,0.0314588]
[1742897214955,0.14896611,87184.0,87183.0,0.0314588]
[1742897215357,0.18086611,87184.0,87183.0,0.0314588]
[1742897215857,0.18086611,87184.0,87183.0,0.2614588]
[1742897216058,0.18586611,87184.0,87183.0,0.0321388]
[1742897216258,0.18586611,87184.0,87183.0,0.0314588]
[1742897218558,0.18586611,87184.0,87183.0,0.3114588]
[1742897218752,0.18586611,87184.0,87183.0,0.3120588]
[1742897218961,0.18586611,87184.0,87183.0,0.0320588]
[1742897219257,0.18586611,87184.0,87183.0,0.0314588]
[1742897219666,0.18586611,87184.0,87183.0,0.0320588]
[1742897219861,0.18586611,87184.0,87183.0,0.0314588]
[1742897220468,0.18586611,87184.0,87183.0,0.0321388]
[1742897220668,0.18586611,87184.0,87183.0,0.0314588]
[1742897221465,0.18586611,87184.0,87183.0,0.2814588]
[1742897221667,0.18586611,87184.0,87183.0,0.0320588]
[1742897221870,0.18586611,87184.0,87183.0,0.3114588]
[1742897222071,0.18586611,87184.0,87183.0,0.3120588]
[1742897222263,0.18586611,87184.0,87183.0,0.0320588]
[1742897222461,0.18586611,87184.0,87183.0,0.0314588]
[1742897223568,0.18586611,87184.0,87183.0,0.2914588]
[1742897223770,0.18586611,87184.0,87183.0,0.2725388]
[1742897223962,0.18586611,87184.0,87183.0,0.0325388]
[1742897224166,0.18586611,87184.0,87183.0,0.0314588]
[1742897227669,0.20012563,87184.0,87183.0,0.0321388]
[1742897227874,0.20012563,87184.0,87183.0,0.0314588]
[1742897229069,0.20012563,87184.0,87183.0,0.0004588]
[1742897231480,0.20012563,87184.0,87183.0,0.0329588]
[1742897231772,0.20012563,87184.0,87183.0,0.0004588]
[1742897232371,0.40610706,87184.0,87183.0,0.0004588]
[1742897232873,0.40610706,87184.0,87183.0,0.0329588]
[1742897237482,0.40610706,87184.0,87183.0,0.0004588]
[1742897240877,0.30489692,87184.0,87183.0,0.0004588]
[1742897244273,0.41693692,87184.0,87183.0,0.0004588]
[1742897247781,0.41693692,87184.0,87183.0,0.2804588]
[1742897248079,0.41693692,87184.0,87183.0,0.0010988]
[1742897248384,0.41693692,87184.0,87183.0,0.0004588]
[1742897249174,0.41693692,87184.0,87183.0,0.2404588]
[1742897249378,0.41693692,87184.0,87183.0,0.0011388]
[1742897249579,0.41693692,87184.0,87183.0,0.0004588]
[1742897254590,0.30489692,87184.0,87183.0,0.0004588]
[1742897254789,0.41693692,87184.0,87183.0,0.0004588]
[1742897261192,0.31216563,87184.0,87183.0,0.0004588]
[1742897262994,0.20012563,87184.0,87183.0,0.0004588]
[1742897263184,0.31216563,87184.0,87183.0,0.0004588]
[1742897269599,0.42284317,87184.0,87183.0,0.0004588]
[1742897273715,0.31216563,87184.0,87183.0,0.0004588]
[1742897276419,0.67296563,87184.0,87183.0,0.0004588]
[1742897282028,0.78407096,87184.0,87183.0,0.0004588]
[1742897288233,0.81577096,87184.0,87183.0,0.0004588]
[1742897302040,0.81577096,87184.0,87183.0,0.2504588]
[1742897302243,0.81577096,87184.0,87183.0,0.0015788]
[1742897302443,0.81577096,87184.0,87183.0,0.0004588]
[1742897302738,0.81569096,87184.0,87183.0,0.0004588]
[1742897312739,0.70373096,87184.0,87183.0,0.0004588]
[1742897312945,0.81569096,87184.0,87183.0,0.0004588]
[1742897316046,0.81569096,87184.0,87183.0,0.0316588]
[1742897316647,0.114698,87175.0,87174.0,0.0322]
[1742897316947,0.11577801,87175.0,87174.0,0.02108]
[1742897317752,0.12719989,87175.0,87174.0,0.02108]
[1742897317950,0.15939989,87175.0,87174.0,0.02108]
[1742897318249,0.1147019,87172.0,87171.0,0.0312]
[1742897318448,0.11610191,87172.0,87171.0,0.0648]
[1742897318748,0.11610191,87172.0,87171.0,0.0642]
[1742897318749,0.17920191,87172.0,87171.0,0.0642]
[1742897319449,0.17920191,87172.0,87171.0,0.3442]
[1742897319653,0.17920191,87172.0,87171.0,0.0656]
[1742897319852,0.17920191,87172.0,87171.0,0.0642]
[1742897320355,0.17920191,87172.0,87171.0,0.3242]
[1742897320562,0.17920191,87172.0,87171.0,0.3248]
[1742897320863,0.17920191,87172.0,87171.0,0.0648]
[1742897321063,0.17920191,87172.0,87171.0,0.0642]
[1742897321462,0.17920191,87172.0,87171.0,0.3042]
[1742897321653,0.17920191,87172.0,87171.0,0.30488]
[1742897321853,0.17920191,87172.0,87171.0,0.06488]
[1742897322058,0.17920191,87172.0,87171.0,0.0642]
[1742897322967,0.17920191,87172.0,87171.0,0.3542]
[1742897323163,0.29116191,87172.0,87171.0,0.06488]
[1742897323463,0.29116191,87172.0,87171.0,0.0642]
[1742897324165,0.32426191,87172.0,87171.0,0.0642]
[1742897324563,0.0573562,87164.0,87158.0,0.3608]
[1742897324762,0.1147177,87160.0,87159.0,0.0316]
[1742897324963,0.11611771,87160.0,87159.0,0.2722]
[1742897325168,0.18111771,87160.0,87159.0,0.2722]
[1742897325868,0.18111771,87160.0,87159.0,0.5422]
[1742897326059,0.18111771,87160.0,87159.0,0.2722]
[1742897326455,0.18211771,87160.0,87159.0,0.2722]
[1742897327467,0.18311771,87160.0,87159.0,0.2722]
[1742897327677,0.18311771,87160.0,87159.0,0.3038]
[1742897327967,0.18311771,87160.0,87159.0,0.3351]
[1742897332067,0.18311771,87160.0,87159.0,0.5751]
[1742897332272,0.18311771,87160.0,87159.0,0.3351]
[1742897334959,0.18311771,87160.0,87159.0,0.5851]
[1742897335165,0.18311771,87160.0,87159.0,0.3351]
[1742897345874,0.18311771,87160.0,87159.0,0.3035]
[1742897346276,0.18311771,87160.0,87159.0,0.2719]
[1742897346874,0.18311771,87160.0,87159.0,0.2406]
[1742897347573,0.18311771,87160.0,87159.0,0.0006]
[1742897348581,0.18211771,87160.0,87159.0,0.0006]
[1742897349078,0.18111771,87160.0,87159.0,0.0006]
[1742897352885,0.19537723,87160.0,87159.0,0.0006]
[1742897354586,0.36737239,87160.0,87159.0,0.0006]
[1742897355182,0.72817239,87160.0,87159.0,1e-07]
[1742897355381,0.1147256,87154.0,87153.0,0.4078]
[1742897355684,0.11628561,87154.0,87153.0,0.4078]
[1742897355877,0.21298561,87154.0,87153.0,0.4078]
[1742897356687,0.22433548,87154.0,87153.0,0.4078]
[1742897356889,0.1147282,87152.0,87149.0,0.37245916]
[1742897357081,0.11628821,87152.0,87149.0,0.37245916]
[1742897357280,0.18168821,87152.0,87149.0,0.37245916]
[1742897358085,0.18168821,87152.0,87147.0,0.0332]
[1742897358086,0.19594773,87152.0,87143.0,0.031]
[1742897358290,0.55674773,87152.0,87144.0,0.0318]
[1742897358485,0.55674773,87152.0,87142.0,0.59689574]
[1742897358486,0.66862773,87152.0,87151.0,7e-08]
[1742897359694,0.67726565,87152.0,87151.0,7e-08]
[1742897368399,0.56538565,87152.0,87151.0,7e-08]
[1742897368694,0.67726565,87152.0,87151.0,7e-08]
[1742897369293,0.29356821,87152.0,87151.0,0.26000007]
[1742897369989,0.29356821,87152.0,87151.0,0.01170033]
[1742897370185,0.29356821,87152.0,87151.0,7e-08]
[1742897370385,0.29356821,87152.0,87151.0,0.01131536]
[1742897371502,0.14918821,87152.0,87151.0,0.01131536]
[1742897371700,0.17918821,87152.0,87151.0,0.01131536]
[1742897372299,0.11628821,87152.0,87151.0,0.34131536]
[1742897372700,0.11628821,87152.0,87151.0,0.40541536]
[1742897372906,0.11628821,87152.0,87151.0,1.90541536]
[1742897373197,0.1147282,87152.0,87151.0,1.90541536]
[1742897374002,0.1147282,87152.0,87151.0,2.02014496]
[1742897374398,0.1147282,87152.0,87151.0,0.52014496]
[1742897374603,0.11636821,87152.0,87151.0,0.52014496]
[1742897374998,0.1147282,87152.0,87151.0,0.52014496]
[1742897375602,0.11628821,87152.0,87151.0,0.52014496]
[1742897377202,0.14788821,87152.0,87151.0,0.52014496]
[1742897377602,0.14788821,87152.0,87151.0,0.35014496]
[1742897380198,0.14788821,87152.0,87151.0,0.60014496]
[1742897380398,0.14788821,87152.0,87151.0,0.35014496]
[1742897381799,0.18018821,87152.0,87151.0,0.35014496]
[1742897382209,0.18018821,87152.0,87151.0,0.50014496]
[1742897385319,0.18018821,87152.0,87151.0,0.35014496]
[1742897385615,0.18018821,87152.0,87151.0,0.51014496]
[1742897388711,0.18018821,87152.0,87151.0,0.23541536]
[1742897389020,0.21228821,87152.0,87151.0,0.35014496]
[1742897390720,0.21228821,87152.0,87151.0,0.23541536]
[1742897391121,0.21228821,87152.0,87151.0,0.35014496]
[1742897391517,0.21228821,87152.0,87151.0,0.63014496]
[1742897391732,0.21228821,87152.0,87151.0,0.35014496]
[1742897392033,0.21228821,87152.0,87151.0,0.31804496]
[1742897394735,0.21228821,87152.0,87151.0,0.28604496]
[1742897395036,0.21228821,87152.0,87151.0,0.17131536]
[1742897396128,0.21228821,87152.0,87151.0,0.28604496]
[1742897396937,0.21228821,87152.0,87151.0,0.31934496]
[1742897397434,0.21228821,87152.0,87151.0,0.59934496]
[1742897397939,0.21228821,87152.0,87151.0,0.63254496]
[1742897398631,0.21228821,87152.0,87151.0,0.35254496]
[1742897399342,0.21228821,87152.0,87151.0,0.31934496]
[1742897402540,0.21228821,87152.0,87151.0,0.28604496]
[1742897404634,0.21228821,87152.0,87151.0,0.16000007]
[1742897404635,0.22654773,87152.0,87151.0,0.16000007]
[1742897405032,0.23153773,87152.0,87151.0,0.16000007]
[1742897405642,0.68395287,87152.0,87151.0,7e-08]
[1742897405842,0.72984287,87152.0,87151.0,7e-08]
[1742897406933,0.75852287,87152.0,87151.0,7e-08]
[1742897407443,0.78720287,87152.0,87151.0,7e-08]
[1742897413839,0.88662183,87152.0,87151.0,7e-08]
[1742897419857,0.87236231,87152.0,87151.0,7e-08]
[1742897420058,0.88662183,87152.0,87151.0,7e-08]
[1742897421660,0.99329951,87152.0,87151.0,7e-08]
[1742897423459,1.10509951,87152.0,87151.0,7e-08]
[1742897424365,0.114748,87137.0,87136.0,0.0305]
[1742897424554,0.22810801,87137.0,87136.0,0.0305]
[1742897424750,0.32270801,87137.0,87136.0,0.0305]
[1742897426262,0.32370801,87137.0,87136.0,0.0305]
[1742897427966,0.35339801,87137.0,87136.0,0.0305]
[1742897428366,0.35837801,87137.0,87136.0,0.0305]
[1742897428868,0.36964542,87137.0,87136.0,0.0305]
[1742897429070,0.49587542,87137.0,87136.0,0.0305]
[1742897430256,0.1147493,87136.0,87135.0,0.00045906]